bitfinex/quotes_BTCUSD_20240605
["timestamp","ask_amount","ask_price","bid_price","bid_amount"]
[1717595085475,0.002,70789.0,70788.0,0.49581969]
[1717595086573,0.004,70799.0,70798.0,0.432739]
[1717595086765,0.004,70799.0,70798.0,0.623539]
[1717595089255,0.004,70799.0,70798.0,0.624539]
[1717595089461,0.004,70799.0,70798.0,0.64146133]
[1717595089663,0.004,70799.0,70798.0,0.92395433]
[1717595089983,0.009504,70816.0,70808.0,0.141226]
[1717595090192,0.009504,70816.0,70808.0,0.173226]
[1717595090402,0.009504,70816.0,70808.0,0.2073286]
[1717595091431,0.009504,70816.0,70808.0,0.4897816]
[1717595093028,0.009504,70816.0,70808.0,0.7722346]
[1717595093446,0.009504,70816.0,70808.0,0.8722346]
[1717595093592,0.009504,70816.0,70808.0,0.93484359]
[1717595094138,1e-08,70809.0,70808.0,0.93484359]
[1717595094355,1e-08,70809.0,70808.0,0.93584359]
[1717595094772,1e-08,70809.0,70808.0,1.21829659]
[1717595095319,1e-08,70809.0,70808.0,1.36271552]
[1717595096359,1e-08,70809.0,70808.0,1.46271552]
[1717595096567,0.008,70819.0,70818.0,0.715035]
[1717595096775,0.008,70819.0,70818.0,0.77018274]
[1717595098354,0.008,70819.0,70818.0,0.77118274]
[1717595100348,0.008,70819.0,70818.0,0.48876874]
[1717595100566,0.008,70819.0,70818.0,0.20635474]
[1717595100792,0.009504,70823.0,70822.0,0.150199]
[1717595101005,0.00100951,70823.0,70822.0,0.21321969]
[1717595101218,0.00100951,70823.0,70822.0,0.77801569]
[1717595101475,1e-08,70823.0,70822.0,0.84062468]
[1717595101688,1e-08,70823.0,70822.0,0.77801569]
[1717595101888,1e-08,70823.0,70822.0,0.84062468]
[1717595102036,1e-08,70823.0,70822.0,0.77801569]
[1717595102242,1e-08,70823.0,70822.0,0.94581569]
[1717595103740,0.15739101,70819.0,70818.0,0.01664188]
[1717595103979,0.37403818,70819.0,70818.0,0.009]
[1717595104168,0.15739101,70813.0,70812.0,0.009]
[1717595104381,0.15739101,70810.0,70809.0,0.009]
[1717595104540,0.15707671,70809.0,70808.0,0.00086]
[1717595104737,0.37372388,70809.0,70808.0,0.00086]
[1717595104964,0.52494788,70809.0,70808.0,0.00086]
[1717595105160,0.72494788,70809.0,70808.0,0.00086]
[1717595105563,0.71494788,70809.0,70808.0,0.00086]
[1717595105782,0.61494788,70809.0,70808.0,0.00086]
[1717595105991,0.71494788,70809.0,70808.0,0.00086]
[1717595106163,0.72494788,70809.0,70808.0,0.00086]
[1717595106584,0.15707671,70787.0,70786.0,0.009]
[1717595106741,0.30149564,70787.0,70786.0,0.009]
[1717595106946,0.28149564,70787.0,70786.0,0.009]
[1717595107248,0.30149564,70787.0,70786.0,0.009]
[1717595107900,0.15707671,70782.0,70781.0,0.017]
[1717595108095,0.30149564,70782.0,70781.0,0.017]
[1717595108874,0.30132567,70782.0,70781.0,0.017]
[1717595110446,0.30132567,70782.0,70781.0,0.008]
[1717595111434,0.31132567,70782.0,70781.0,0.008]
[1717595111638,0.44260367,70782.0,70781.0,0.008]
[1717595113686,0.14441893,70782.0,70781.0,0.008]
[1717595113890,0.02,70790.0,70781.0,0.008]
[1717595113891,0.15690674,70789.0,70788.0,0.009]
[1717595114113,0.30132567,70789.0,70788.0,0.009]
[1717595114797,0.28132567,70789.0,70788.0,0.009]
[1717595115136,0.28132567,70789.0,70782.0,0.00565055]
[1717595115137,0.34690674,70796.0,70795.0,0.009]
[1717595115338,0.49132567,70796.0,70795.0,0.009]
[1717595118726,0.13690674,70800.0,70799.0,0.009]
[1717595118898,0.13690674,70804.0,70803.0,0.009]
[1717595119104,0.13690674,70808.0,70807.0,0.009]
[1717595119514,0.13690674,70812.0,70811.0,0.009]
[1717595119676,0.13690674,70814.0,70813.0,0.150217]
[1717595119880,0.13690675,70823.0,70822.0,0.009]
[1717595120128,0.14441894,70823.0,70822.0,0.009]
[1717595120358,0.14441894,70823.0,70822.0,0.150199]
[1717595120568,0.28132568,70823.0,70822.0,0.150199]
[1717595120758,0.30132568,70823.0,70822.0,0.150199]
[1717595120942,0.30132568,70823.0,70822.0,0.1652189]
[1717595121334,1e-08,70823.0,70822.0,0.1652189]
[1717595121537,1e-08,70823.0,70822.0,0.1882189]
[1717595122403,1e-08,70823.0,70822.0,0.1892189]
[1717595124065,1e-08,70823.0,70822.0,0.1882189]
[1717595124279,0.13690675,70823.0,70822.0,0.1882189]
[1717595124746,0.13690675,70823.0,70822.0,0.1892189]
[1717595124951,1e-08,70823.0,70822.0,0.1892189]
[1717595125782,0.30132568,70823.0,70822.0,0.0160199]
[1717595125995,0.45252268,70823.0,70822.0,0.001]
[1717595126180,0.44252268,70823.0,70822.0,0.001]
[1717595126590,0.45252268,70823.0,70822.0,0.001]
[1717595126992,0.65252268,70823.0,70822.0,0.001]
[1717595127644,0.93491668,70823.0,70822.0,0.001]
[1717595128802,0.15690674,70806.0,70805.0,0.009]
[1717595129002,0.30132567,70806.0,70805.0,0.009]
[1717595130428,0.15690674,70805.0,70804.0,0.009]
[1717595130636,0.30132567,70805.0,70804.0,0.009]
[1717595131017,0.49132567,70805.0,70804.0,0.009]
[1717595131913,0.15690674,70798.0,70797.0,0.009]
[1717595132120,0.30132567,70798.0,70797.0,0.009]
[1717595132575,0.13690674,70783.0,70782.0,0.151137]
[1717595133093,0.15690674,70783.0,70782.0,0.00986]
[1717595133293,0.15690674,70783.0,70781.0,0.00786]
[1717595133497,0.15690674,70782.0,70781.0,0.00786]
[1717595134249,0.13690674,70782.0,70781.0,0.00786]
[1717595134529,0.13690674,70783.0,70781.0,0.00786]
[1717595134701,0.15690674,70782.0,70781.0,0.00786]
[1717595135860,0.15690674,70782.0,70781.0,0.00886]
[1717595136062,0.13690674,70789.0,70781.0,0.03186]
[1717595136176,0.13690674,70788.0,70782.0,0.023]
[1717595136383,0.13690674,70787.0,70782.0,0.042966]
[1717595137238,0.13690674,70795.0,70782.0,0.042966]
[1717595137448,0.13690674,70798.0,70784.0,0.07222824]
[1717595137647,0.13690674,70796.0,70791.0,0.14126]
[1717595137997,0.13690674,70796.0,70792.0,0.023]
[1717595138541,0.14441893,70804.0,70792.0,0.023]
[1717595138542,0.13690674,70798.0,70792.0,0.164258]
[1717595138716,0.13690674,70795.0,70793.0,0.0164258]
[1717595139034,0.13690674,70795.0,70794.0,0.023]
[1717595139237,0.13690674,70800.0,70794.0,0.023]
[1717595139466,0.19,70805.0,70776.0,0.17222824]
[1717595139467,0.15690674,70795.0,70776.0,0.17222824]
[1717595139628,0.13690674,70787.0,70781.0,0.02586882]
[1717595139821,0.13690674,70787.0,70782.0,0.023]
[1717595140012,0.13690674,70782.0,70781.0,0.14914]
[1717595140216,0.13690674,70783.0,70781.0,0.14914]
[1717595140516,0.15690674,70783.0,70782.0,0.014914]
[1717595141223,0.13690674,70784.0,70782.0,0.014914]
[1717595141425,0.13690674,70784.0,70783.0,0.141276]
[1717595141771,0.15659244,70782.0,70781.0,0.00786]
[1717595141977,0.30101137,70782.0,70781.0,0.00786]
[1717595143874,0.30105137,70782.0,70781.0,0.00786]
[1717595145656,0.44232937,70782.0,70781.0,0.00786]
[1717595146115,0.30105137,70782.0,70781.0,0.00786]
[1717595146423,0.28305137,70782.0,70781.0,0.00786]
[1717595146624,0.13863244,70782.0,70781.0,0.00786]
[1717595146783,0.15863244,70782.0,70781.0,0.00786]
[1717595146983,0.13863244,70782.0,70781.0,0.00786]
[1717595147206,0.15863244,70782.0,70781.0,0.00786]
[1717595147587,0.15863244,70782.0,70781.0,0.016946]
[1717595147979,0.30305137,70782.0,70781.0,0.00786]
[1717595148576,0.30105137,70782.0,70781.0,0.00786]
[1717595148991,0.44632937,70782.0,70781.0,0.00786]
[1717595149199,0.52222937,70782.0,70781.0,0.00786]
[1717595149404,0.62222937,70782.0,70781.0,0.00786]
[1717595149837,0.62822937,70782.0,70781.0,0.00786]
[1717595150305,0.61822937,70782.0,70781.0,0.00786]
[1717595150560,0.62822937,70782.0,70781.0,0.00786]
[1717595152305,0.34031893,70782.0,70781.0,0.00786]
[1717595152741,0.32031893,70782.0,70781.0,0.00786]
[1717595153425,0.46159693,70782.0,70781.0,0.00786]
[1717595153636,0.48159693,70782.0,70781.0,0.00786]
[1717595154041,0.46159693,70782.0,70781.0,0.00786]
[1717595157572,0.47359693,70782.0,70781.0,0.00786]
[1717595159500,0.47363693,70782.0,70781.0,0.00786]
[1717595159703,0.49363693,70782.0,70781.0,0.00786]
[1717595160190,0.47363693,70782.0,70781.0,0.00786]
[1717595160935,0.39773693,70782.0,70781.0,0.00786]
[1717595161139,0.01204,70782.0,70781.0,0.00786]
[1717595161338,0.01204,70782.0,70781.0,0.22451638]
[1717595161582,0.01204,70782.0,70781.0,0.44391638]
[1717595162050,4e-05,70782.0,70781.0,0.438266]
[1717595162407,0.00404,70782.0,70781.0,0.458266]
[1717595162948,0.00404,70782.0,70781.0,0.438266]
[1717595164936,4e-05,70782.0,70781.0,0.438266]
[1717595165355,4e-05,70782.0,70781.0,0.439266]
[1717595165764,4e-05,70782.0,70781.0,0.438266]
[1717595166080,4e-05,70782.0,70781.0,0.458266]
[1717595166371,4e-05,70782.0,70781.0,0.459266]
[1717595166540,4e-05,70782.0,70781.0,0.47625661]
[1717595166936,4e-05,70782.0,70781.0,0.47711661]
[1717595167143,4e-05,70782.0,70781.0,0.45711661]
[1717595167636,0.000986,70782.0,70781.0,0.47711661]
[1717595169425,0.000986,70782.0,70781.0,0.75967761]
[1717595169646,0.000986,70782.0,70781.0,1.58665754]
[1717595169847,1e-08,70782.0,70781.0,1.58665754]
[1717595170066,1e-08,70782.0,70781.0,1.68665754]
[1717595170265,1e-08,70782.0,70781.0,1.76921854]
[1717595170467,1e-08,70782.0,70781.0,1.93701854]
[1717595171407,1e-08,70782.0,70781.0,1.31003861]
[1717595171548,1e-08,70782.0,70781.0,0.73967761]
[1717595171751,1e-08,70782.0,70781.0,0.73867761]
[1717595172172,1e-08,70782.0,70781.0,0.73967761]
[1717595172685,1e-08,70782.0,70781.0,0.73867761]
[1717595173085,1e-08,70782.0,70781.0,0.73967761]
[1717595173452,1e-08,70782.0,70781.0,0.00972]
[1717595173694,0.15660001,70782.0,70781.0,0.00972]
[1717595173889,0.30101894,70782.0,70781.0,0.00972]
[1717595174595,0.44229694,70782.0,70781.0,0.00972]
[1717595174802,1e-08,70782.0,70781.0,0.00972]
[1717595175388,1e-08,70782.0,70781.0,0.01537051]
[1717595175588,1e-08,70782.0,70781.0,0.0685086]
[1717595175825,1e-08,70782.0,70781.0,0.2087886]
[1717595176048,1e-08,70782.0,70781.0,0.2317886]
[1717595176231,1e-08,70782.0,70781.0,0.3995886]
[1717595176486,1e-08,70782.0,70781.0,0.5536886]
[1717595176689,0.00500001,70782.0,70781.0,1.06086853]
[1717595176816,0.00500001,70782.0,70781.0,1.34342953]
[1717595179774,0.00500001,70782.0,70781.0,1.84342953]
[1717595180117,1e-08,70782.0,70781.0,1.84342953]
[1717595180667,1e-08,70782.0,70781.0,2.12699053]
[1717595180846,0.1632,70816.0,70808.0,0.141225]
[1717595181052,0.43336945,70815.0,70809.0,0.01977103]
[1717595181216,0.14441893,70821.0,70812.0,0.141217]
[1717595181421,0.14441893,70821.0,70813.0,0.141216]
[1717595181624,0.056516,70819.0,70813.0,0.141216]
[1717595181867,0.056516,70819.0,70814.0,0.0141216]
[1717595181868,0.20062063,70819.0,70814.0,0.0141216]
[1717595182043,0.14441893,70819.0,70814.0,0.0141216]
[1717595182375,0.1533,70818.0,70814.0,0.0141216]
[1717595184070,0.22552824,70818.0,70814.0,0.0141216]
[1717595184265,0.22552824,70818.0,70815.0,0.01553376]
[1717595185644,0.22552824,70818.0,70808.0,0.001]
[1717595185790,0.36994717,70818.0,70806.0,0.023]
[1717595185980,0.36994717,70818.0,70810.0,0.141222]
[1717595186186,0.36994717,70818.0,70815.0,0.001]
[1717595186841,0.14441893,70817.0,70815.0,0.001]
[1717595187042,0.141211,70816.0,70815.0,0.001]
[1717595187205,0.30562993,70816.0,70815.0,0.001]
[1717595187604,0.54902993,70816.0,70815.0,0.001]
[1717595187828,0.64902993,70816.0,70815.0,0.001]
[1717595188003,1.04902993,70816.0,70815.0,0.001]
[1717595188204,1.33145193,70816.0,70815.0,0.001]
[1717595188408,1.13145193,70816.0,70815.0,0.001]
[1717595188628,0.19,70805.0,70794.0,0.01685731]
[1717595188809,0.2368,70803.0,70798.0,0.43336945]
[1717595189011,0.14441893,70802.0,70795.0,0.01581153]
[1717595190414,0.02,70793.0,70781.0,0.04185809]
[1717595190590,0.19,70787.0,70781.0,0.00872]
[1717595191095,0.14441893,70786.0,70781.0,0.00872]
[1717595191395,0.02,70785.0,70781.0,0.00872]
[1717595191695,0.14441893,70784.0,70781.0,0.00872]
[1717595194090,0.14441893,70784.0,70781.0,0.00972]
[1717595194266,0.02,70782.0,70781.0,0.00972]
[1717595194452,0.28569693,70782.0,70781.0,0.00972]
[1717595194659,0.30569693,70782.0,70781.0,0.00972]
[1717595194862,0.27569693,70782.0,70781.0,0.00972]
[1717595195485,0.13441893,70782.0,70781.0,0.00972]
[1717595196567,0.13441893,70782.0,70781.0,0.00872]
[1717595196912,0.13441893,70782.0,70781.0,0.00972]
[1717595197530,0.13441893,70782.0,70781.0,0.00872]
[1717595200307,0.19,70787.0,70781.0,0.11062]
[1717595200504,0.19,70787.0,70783.0,0.02]
[1717595200809,0.141256,70794.0,70784.0,0.02]
[1717595201005,0.14441893,70793.0,70787.0,0.09222824]
[1717595201216,0.19,70795.0,70792.0,0.141258]
[1717595201438,0.19,70804.0,70793.0,0.372256]
[1717595201651,0.14441893,70803.0,70796.0,0.09222824]
[1717595201875,0.19,70804.0,70800.0,0.141241]
[1717595202452,0.0773,70816.0,70804.0,0.141234]
[1717595202453,0.19,70812.0,70804.0,0.141234]
[1717595202658,0.14441893,70811.0,70805.0,0.1573544]
[1717595203040,0.14441893,70811.0,70805.0,0.0161234]
[1717595203247,0.19,70804.0,70795.0,0.14125]
[1717595203444,0.1506,70802.0,70795.0,0.14125]
[1717595203626,0.22241893,70801.0,70791.0,0.141259]
[1717595203832,0.22241893,70801.0,70788.0,0.00978789]
[1717595204032,0.1506,70798.0,70788.0,0.02694522]
[1717595204350,0.14441893,70797.0,70789.0,0.01682122]
[1717595204774,0.14441893,70797.0,70788.0,0.00978789]
[1717595205138,0.19,70794.0,70786.0,0.141269]
[1717595205344,0.14441893,70793.0,70786.0,0.141269]
[1717595205759,0.14441893,70793.0,70788.0,0.001]
[1717595206574,0.14441893,70793.0,70786.0,0.141269]
[1717595206757,0.14441893,70793.0,70787.0,0.03166591]
[1717595207950,0.02,70792.0,70787.0,0.03166591]
[1717595208054,0.16441893,70791.0,70787.0,0.03166591]
[1717595208256,0.14441893,70791.0,70782.0,0.0251901]
[1717595208458,0.14441893,70791.0,70786.0,0.001]
[1717595208963,0.30568093,70791.0,70782.0,0.0251901]
[1717595209220,0.30568093,70791.0,70781.0,0.00872]
[1717595209221,0.331278,70782.0,70781.0,0.00872]
[1717595209420,0.71639693,70782.0,70781.0,0.00872]
[1717595210605,0.73639693,70782.0,70781.0,0.00872]
[1717595213062,0.73639693,70782.0,70781.0,0.00872]
[1717595213466,0.72339693,70782.0,70781.0,0.00872]
[1717595214275,0.64739693,70782.0,70781.0,0.00872]
[1717595214675,0.74939693,70782.0,70781.0,0.00872]
[1717595215010,0.88594193,70782.0,70781.0,0.00872]
[1717595215211,0.90594193,70782.0,70781.0,0.00872]
[1717595217716,1.18849893,70782.0,70781.0,0.00872]
[1717595220438,0.88594193,70782.0,70781.0,0.00872]
[1717595220649,0.63924193,70782.0,70781.0,0.00872]
[1717595220841,0.58269693,70782.0,70781.0,0.00872]
[1717595221486,0.60269693,70782.0,70781.0,0.00872]
[1717595222202,0.58269693,70782.0,70781.0,0.00872]
[1717595222790,0.60269693,70782.0,70781.0,0.00872]
[1717595223088,1.41295393,70782.0,70781.0,0.00872]
[1717595223293,0.15141893,70782.0,70781.0,0.00872]
[1717595223490,0.007,70782.0,70781.0,0.25472]
[1717595223652,0.007,70782.0,70781.0,0.282192]
[1717595224057,0.19,70791.0,70783.0,0.02]
[1717595224405,0.33441893,70791.0,70784.0,0.02]
[1717595224607,0.141244,70799.0,70787.0,0.02]
[1717595224608,0.19,70799.0,70787.0,0.02]
[1717595224924,0.14441893,70798.0,70788.0,0.02]
[1717595225315,0.14441893,70798.0,70790.0,0.02]
[1717595225518,0.14441893,70798.0,70791.0,0.0384266]
[1717595225719,0.14441893,70798.0,70789.0,0.023]
[1717595225882,0.14441893,70798.0,70791.0,0.02]
[1717595226228,0.14441893,70798.0,70793.0,0.2375]
[1717595229491,0.14441893,70798.0,70793.0,0.2385]
[1717595230133,0.21664717,70798.0,70793.0,0.001]
[1717595230330,0.161254,70794.0,70793.0,0.001]
[1717595230580,0.28567293,70794.0,70793.0,0.001]
[1717595232251,0.19,70791.0,70781.0,0.15]
[1717595232610,0.14441893,70790.0,70782.0,0.015]
[1717595233317,0.165,70782.0,70781.0,0.00872]
[1717595233518,0.30941893,70782.0,70781.0,0.00872]
[1717595233669,0.57069693,70782.0,70781.0,0.00872]
[1717595237596,1.26525393,70782.0,70781.0,0.00872]
[1717595237794,1.54781093,70782.0,70781.0,0.00872]
[1717595238195,2.0535858,70782.0,70781.0,0.00872]
[1717595238594,1.716522,70769.0,70768.0,0.00086]
[1717595238964,2.20244093,70769.0,70768.0,0.00086]
[1717595239904,2.00244093,70769.0,70768.0,0.00086]
[1717595240163,0.85833193,70769.0,70768.0,0.00086]
[1717595240363,0.59572293,70769.0,70768.0,0.00086]
[1717595240797,0.69572293,70769.0,70768.0,0.00086]
[1717595241283,1.13813193,70769.0,70768.0,0.00086]
[1717595241843,1.03813193,70769.0,70768.0,0.00086]
[1717595242047,1.72074093,70769.0,70768.0,0.00086]
[1717595242252,1.88091097,70769.0,70768.0,0.00086]
[1717595242976,1.80018093,70769.0,70768.0,0.00086]
[1717595243695,1.60018093,70769.0,70768.0,0.00086]
[1717595243935,1.50018093,70769.0,70768.0,0.00086]
[1717595244139,1.70018093,70769.0,70768.0,0.00086]
[1717595244341,1.21757193,70769.0,70768.0,0.00086]
[1717595244553,1.21626009,70769.0,70768.0,0.00086]
[1717595245253,0.57435109,70769.0,70768.0,0.00086]
[1717595245444,0.33445893,70769.0,70768.0,0.00086]
[1717595245647,0.33445893,70769.0,70768.0,0.24166]
[1717595245826,0.14445893,70769.0,70768.0,0.265826]
[1717595246368,4e-05,70769.0,70768.0,0.265826]
[1717595247056,0.14441893,70769.0,70768.0,0.025026]
[1717595247249,0.14441893,70769.0,70768.0,0.00086]
[1717595247681,0.28572293,70769.0,70768.0,0.00086]
[1717595247845,0.30572293,70769.0,70768.0,0.00086]
[1717595248021,0.28572293,70769.0,70768.0,0.00086]
[1717595248226,0.38562293,70769.0,70768.0,0.00086]
[1717595249608,0.40430617,70769.0,70768.0,0.00086]
[1717595250158,0.38430617,70769.0,70768.0,0.00086]
[1717595250594,0.38434617,70769.0,70768.0,0.00086]
[1717595250961,0.39834617,70769.0,70768.0,0.024636]
[1717595252006,0.39702927,70769.0,70768.0,0.024636]
[1717595252367,0.39702927,70769.0,70768.0,0.00086]
[1717595252571,0.41702927,70769.0,70768.0,0.00086]
[1717595252979,0.39702927,70769.0,70768.0,0.00086]
[1717595253525,0.38302927,70769.0,70768.0,0.00086]
[1717595254081,0.38702927,70769.0,70768.0,0.00086]
[1717595254285,0.73902927,70769.0,70768.0,0.00086]
[1717595254473,1.02597737,70769.0,70768.0,0.00086]
[1717595254685,1.02197737,70769.0,70768.0,0.00086]
[1717595255080,1.02797737,70769.0,70768.0,0.00086]
[1717595257784,1.75570424,70769.0,70768.0,0.00086]
[1717595257899,2.03231324,70769.0,70768.0,0.00086]
[1717595258318,2.04631324,70769.0,70768.0,0.00086]
[1717595258516,1.70119537,70769.0,70768.0,0.00086]
[1717595258719,1.90119537,70769.0,70768.0,0.00086]
[1717595258914,1.88719537,70769.0,70768.0,0.00086]
[1717595259496,1.90119537,70769.0,70768.0,0.00086]
[1717595261029,1.88719537,70769.0,70768.0,0.00086]
[1717595261184,2.03231324,70769.0,70768.0,0.00086]
[1717595261606,2.04631324,70769.0,70768.0,0.00086]
[1717595262089,2.03231324,70769.0,70768.0,0.00086]
[1717595262723,1.90119537,70769.0,70768.0,0.00086]
[1717595263128,1.999229,70762.0,70761.0,0.004]
[1717595263425,3.23517617,70762.0,70761.0,0.004]
[1717595264007,3.38377617,70762.0,70753.0,0.00086]
[1717595264222,2.65898817,70754.0,70753.0,0.00086]
[1717595264379,2.75898817,70754.0,70753.0,0.00086]
[1717595264841,2.75888817,70754.0,70753.0,0.00086]
[1717595265614,2.68665993,70754.0,70753.0,0.00086]
[1717595265817,2.70065993,70754.0,70753.0,0.00086]
[1717595266167,2.72766601,70754.0,70753.0,0.00086]
[1717595266508,2.70065993,70754.0,70753.0,0.00086]
[1717595266720,2.73714203,70754.0,70753.0,0.00086]
[1717595267127,2.70065993,70754.0,70753.0,0.00086]
[1717595268644,2.69075993,70754.0,70753.0,0.00086]
[1717595268848,3.16705993,70754.0,70753.0,0.00086]
[1717595269992,3.12525993,70754.0,70753.0,0.00086]
[1717595270187,2.92525993,70754.0,70753.0,0.00086]
[1717595270435,3.12525993,70754.0,70753.0,0.00086]
[1717595272034,2.92525993,70754.0,70753.0,0.00086]
[1717595272237,3.12525993,70754.0,70753.0,0.00086]
[1717595272457,3.22861817,70754.0,70753.0,0.00086]
[1717595272750,3.02861817,70754.0,70753.0,0.00086]
[1717595273092,3.12525993,70754.0,70753.0,0.00086]
[1717595274402,1.84872193,70754.0,70753.0,0.00086]
[1717595275162,1.85872193,70754.0,70753.0,0.00086]
[1717595275273,1.84872193,70754.0,70753.0,0.00086]
[1717595275917,2.68729093,70754.0,70753.0,0.00086]
[1717595276157,2.67329093,70754.0,70753.0,0.00086]
[1717595276576,2.68729093,70754.0,70753.0,0.00086]
[1717595276825,2.8324088,70754.0,70753.0,0.00086]
[1717595277197,2.8184088,70754.0,70753.0,0.00086]
[1717595277727,3.1150778,70754.0,70753.0,0.00086]
[1717595277923,3.13245938,70754.0,70753.0,0.00086]
[1717595278119,3.11845938,70754.0,70753.0,0.00086]
[1717595280054,3.13245938,70754.0,70753.0,0.00086]
[1717595280257,3.13245938,70754.0,70737.0,0.00862]
[1717595280258,1.30547606,70742.0,70737.0,0.00862]
[1717595280482,1.06717799,70742.0,70737.0,0.00862]
[1717595280658,1.43517799,70742.0,70737.0,0.00862]
[1717595281409,2.00051199,70742.0,70737.0,0.00862]
[1717595282458,1.80051199,70742.0,70737.0,0.00862]
[1717595282799,2.00051199,70742.0,70737.0,0.00862]
[1717595282960,1.80051199,70742.0,70737.0,0.00862]
[1717595283157,2.00051199,70742.0,70737.0,0.00862]
[1717595283775,1.80051199,70742.0,70737.0,0.00862]
[1717595283977,1.80041199,70742.0,70737.0,0.00862]
[1717595284180,1.14121093,70742.0,70737.0,0.00862]
[1717595284342,1.31769499,70742.0,70737.0,0.16412]
[1717595284577,1.68992323,70742.0,70737.0,0.00862]
[1717595286231,1.7450411,70742.0,70737.0,0.00862]
[1717595286435,1.78992323,70742.0,70737.0,0.00862]
[1717595287494,1.80392323,70742.0,70737.0,0.00862]
[1717595291304,1.63592323,70742.0,70737.0,0.00862]
[1717595291685,1.80392323,70742.0,70737.0,0.00862]
[1717595292054,1.80360893,70742.0,70737.0,0.00862]
[1717595292777,1.87704712,70742.0,70737.0,0.00862]
[1717595294566,1.87694712,70742.0,70737.0,0.00862]
[1717595294963,1.33671888,70742.0,70737.0,0.00862]
[1717595295232,1.50471888,70742.0,70737.0,0.00862]
[1717595295812,1.21351782,70742.0,70737.0,0.00862]
[1717595296006,1.22200188,70742.0,70741.0,0.2407]
[1717595297557,1.22200188,70742.0,70741.0,0.0864]
[1717595299416,1.50471888,70742.0,70741.0,0.0864]
[1717595300081,1.50471888,70742.0,70741.0,0.004]
[1717595301476,1.32823482,70742.0,70741.0,0.004]
[1717595301649,1.49623482,70742.0,70741.0,0.004]
[1717595301835,1.50471888,70742.0,70741.0,0.004]
[1717595302039,1.21351782,70742.0,70741.0,0.004]
[1717595302352,1.21351782,70742.0,70741.0,0.0845]
[1717595302353,0.64594963,70742.0,70741.0,0.0845]
[1717595302555,0.64594963,70742.0,70741.0,0.2427]
[1717595303857,0.74594963,70742.0,70741.0,0.2427]
[1717595304259,0.64594963,70742.0,70741.0,0.2427]
[1717595304661,0.74594963,70742.0,70741.0,0.2427]
[1717595305216,0.64594963,70742.0,70741.0,0.2427]
[1717595305376,0.63194963,70742.0,70741.0,0.2427]
[1717595305561,0.63194963,70742.0,70741.0,0.26971953]
[1717595306003,0.33441893,70742.0,70741.0,0.26971953]
[1717595306590,0.34841893,70742.0,70741.0,0.26971953]
[1717595306790,0.34841893,70742.0,70741.0,0.27057953]
[1717595307396,0.34841893,70742.0,70741.0,0.28057953]
[1717595307397,0.014,70742.0,70741.0,0.28057953]
[1717595307600,0.014,70742.0,70741.0,0.27057953]
[1717595307797,0.014946,70742.0,70741.0,0.28057953]
[1717595307997,0.000946,70742.0,70741.0,0.28057953]
[1717595308200,0.000946,70742.0,70741.0,0.27057953]
[1717595308402,0.014946,70742.0,70741.0,0.27057953]
[1717595308890,0.014946,70742.0,70741.0,0.28057953]
[1717595309314,0.000946,70742.0,70741.0,0.27057953]
[1717595309689,0.006946,70742.0,70741.0,0.27057953]
[1717595309885,0.006946,70742.0,70741.0,0.28057953]
[1717595310086,0.532869,70752.0,70751.0,0.07711594]
[1717595310351,0.67728793,70752.0,70751.0,0.23872753]
[1717595310896,0.67728793,70752.0,70751.0,0.23701159]
[1717595311097,0.67718793,70752.0,70751.0,0.23872753]
[1717595311715,0.67718793,70752.0,70751.0,0.23701159]
[1717595311934,0.67718793,70752.0,70751.0,0.23872753]
[1717595313047,0.056569,70752.0,70751.0,0.23872753]
[1717595313243,0.1,70762.0,70761.0,0.00171594]
[1717595313439,0.24441893,70762.0,70761.0,0.24311594]
[1717595313621,0.14441893,70762.0,70761.0,0.26742753]
[1717595314692,0.14441893,70762.0,70761.0,0.26571159]
[1717595315652,0.14441893,70762.0,70761.0,0.26742753]
[1717595316057,0.19,70756.0,70750.0,0.1659]
[1717595316270,0.14441893,70755.0,70750.0,0.1659]
[1717595316572,0.1,70754.0,70750.0,0.1659]
[1717595316770,0.141342,70751.0,70748.0,0.0755]
[1717595316978,0.28576193,70750.0,70748.0,0.0755]
[1717595317137,0.28576193,70750.0,70748.0,0.09981159]
[1717595317340,0.141344,70749.0,70748.0,0.0755]
[1717595317558,0.28576293,70749.0,70748.0,0.0755]
[1717595317965,0.19,70746.0,70741.0,0.03016359]
[1717595318180,0.19,70742.0,70741.0,0.00486]
[1717595318355,0.34290299,70742.0,70741.0,0.00486]
[1717595318557,0.48426099,70742.0,70741.0,0.00486]
[1717595318778,0.58426099,70742.0,70741.0,0.00486]
[1717595319578,0.86697799,70742.0,70741.0,0.00486]
[1717595320606,0.85849393,70742.0,70741.0,0.00486]
[1717595320819,0.86697799,70742.0,70741.0,0.00486]
[1717595321231,0.57577693,70742.0,70741.0,0.00486]
[1717595321583,0.58977693,70742.0,70741.0,0.00757594]
[1717595322004,0.58977693,70742.0,70741.0,0.00586]
[1717595322207,0.58946263,70742.0,70741.0,0.00757594]
[1717595322570,0.58946263,70742.0,70741.0,0.00586]
[1717595324295,0.58936263,70742.0,70741.0,0.00586]
[1717595325762,0.59798263,70742.0,70741.0,0.00586]
[1717595328057,0.88918369,70742.0,70741.0,0.00586]
[1717595328430,0.59798263,70742.0,70741.0,0.00586]
[1717595329272,0.88069963,70742.0,70741.0,0.00586]
[1717595329831,0.59798263,70742.0,70741.0,0.00586]
[1717595330416,0.59798263,70742.0,70741.0,0.00757594]
[1717595330865,0.59798263,70742.0,70741.0,0.00586]
[1717595331071,0.59798263,70742.0,70741.0,0.00757594]
[1717595331376,0.59798263,70742.0,70741.0,0.00586]
[1717595333139,0.88918369,70742.0,70741.0,0.00586]
[1717595333349,1.12260262,70742.0,70741.0,0.00586]
[1717595334947,1.11411856,70742.0,70741.0,0.00586]
[1717595335091,0.87511856,70742.0,70741.0,0.00586]
[1717595337768,0.88360262,70742.0,70741.0,0.00586]
[1717595339373,0.88350262,70742.0,70741.0,0.00586]
[1717595339573,0.88218572,70742.0,70741.0,0.00586]
[1717595340411,0.87370166,70742.0,70741.0,0.00586]
[1717595340613,0.88218572,70742.0,70741.0,0.00586]